[Event "*** Titled Tuesday 3|2 Blitz"]
[Site "Chess.com"]
[Date "2016.02.02"]
[Round "4"]
[White "Journey_to_GrandMaster_YT"]
[Black "HovmoellerHest"]
[Result "0-1"]
[WhiteElo "2261"]
[BlackElo "2168"]
[TimeControl "180+2"]
[EndTime "11:56:10 PST"]
[Termination "HovmoellerHest won by checkmate"]

1. d4 {[%clk 0:03:00]} 1... Nf6 {[%clk 0:03:00.8]} 2. c4 {[%clk 0:03:01.2]} 2...
e6 {[%clk 0:03:00.7]} 3. Nc3 {[%clk 0:03:01.5]} 3... Bb4 {[%clk 0:03:01.1]} 4.
Qc2 {[%clk 0:03:02.1]} 4... O-O {[%clk 0:02:59.7]} 5. e4 {[%clk 0:03:00.3]} 5...
Bxc3+ {[%clk 0:02:58.9]} 6. bxc3 {[%clk 0:03:00.8]} 6... d6 {[%clk 0:03:00.2]}
7. Bd3 {[%clk 0:02:59.4]} 7... e5 {[%clk 0:03:00.6]} 8. Ne2 {[%clk 0:03:00.1]}
8... c5 {[%clk 0:03:01.1]} 9. O-O {[%clk 0:02:58.5]} 9... Nbd7 {[%clk
0:03:01.4]} 10. d5 {[%clk 0:02:58.3]} 10... Re8 {[%clk 0:03:01.6]} 11. g3 {[%clk
0:02:57.2]} 11... Nf8 {[%clk 0:02:58.5]} 12. f4 {[%clk 0:02:57.4]} 12... Bg4
{[%clk 0:02:45.6]} 13. f5 {[%clk 0:02:57.2]} 13... Bxe2 {[%clk 0:02:45.7]} 14.
Qxe2 {[%clk 0:02:57.2]} 14... h6 {[%clk 0:02:43.6]} 15. g4 {[%clk 0:02:57.4]}
15... N6h7 {[%clk 0:02:32.3]} 16. Qf2 {[%clk 0:02:52]} 16... Qe7 {[%clk
0:02:25.4]} 17. Kh1 {[%clk 0:02:49.7]} 17... g5 {[%clk 0:02:22.1]} 18. Kg2
{[%clk 0:02:36.8]} 18... f6 {[%clk 0:02:20.4]} 19. Rh1 {[%clk 0:02:36.9]} 19...
Qc7 {[%clk 0:02:16.6]} 20. h4 {[%clk 0:02:36.6]} 20... Re7 {[%clk 0:02:16.6]}
21. hxg5 {[%clk 0:02:34.1]} 21... hxg5 {[%clk 0:02:12.9]} 22. Be3 {[%clk
0:02:28.2]} 22... Rb8 {[%clk 0:02:10.8]} 23. Rh6 {[%clk 0:02:27.8]} 23... a6
{[%clk 0:02:08.9]} 24. Rah1 {[%clk 0:02:23.2]} 24... b5 {[%clk 0:01:57.9]} 25.
cxb5 {[%clk 0:02:22.1]} 25... axb5 {[%clk 0:01:58.9]} 26. Kf3 {[%clk 0:02:15.4]}
26... b4 {[%clk 0:01:52.2]} 27. cxb4 {[%clk 0:02:11]} 27... Rxb4 {[%clk
0:01:53.2]} 28. Qh2 {[%clk 0:02:08.6]} 28... Ra4 {[%clk 0:01:48]} 29. Bb1 {[%clk
0:01:27.6]} 29... Rg7 {[%clk 0:01:43.8]} 30. Qb2 {[%clk 0:01:16.7]} 30... Qb7
{[%clk 0:01:41.1]} 31. Qc3 {[%clk 0:01:06.8]} 31... Qa8 {[%clk 0:01:32.3]} 32.
R1h2 {[%clk 0:01:02.6]} 32... Rb7 {[%clk 0:01:30.9]} 33. Rb2 {[%clk 0:00:45.1]}
33... Ra3 {[%clk 0:01:25.5]} 34. Qc1 {[%clk 0:00:43.4]} 34... Rxe3+ {[%clk
0:01:17.3]} 35. Kf2 {[%clk 0:00:20.8]} 35... Qa3 {[%clk 0:00:54.6]} 36. Rc2
{[%clk 0:00:13.1]} 36... Rf3+ {[%clk 0:00:53]} 37. Kg2 {[%clk 0:00:13.2]} 37...
Rg3+ {[%clk 0:00:49.9]} 38. Kh2 {[%clk 0:00:14]} 38... Qxc1 {[%clk 0:00:43.7]}
39. Rxc1 {[%clk 0:00:15.1]} 39... Rxg4 {[%clk 0:00:45.1]} 40. Bc2 {[%clk
0:00:11.8]} 40... Rh4+ {[%clk 0:00:33.1]} 41. Rxh4 {[%clk 0:00:12.2]} 41... gxh4
{[%clk 0:00:34.5]} 42. Kh3 {[%clk 0:00:13.6]} 42... Ng5+ {[%clk 0:00:35.7]} 43.
Kxh4 {[%clk 0:00:14.1]} 43... Rb4 {[%clk 0:00:33.9]} 44. Rg1 {[%clk 0:00:12]}
44... Kf7 {[%clk 0:00:33.8]} 45. Rg4 {[%clk 0:00:10]} 45... Nd7 {[%clk
0:00:27.9]} 46. Kh5 {[%clk 0:00:10.6]} 46... Rb8 {[%clk 0:00:25.6]} 47. Kh4
{[%clk 0:00:10.9]} 47... Nb6 {[%clk 0:00:22.8]} 48. Kg3 {[%clk 0:00:09.4]} 48...
Nc4 {[%clk 0:00:23.6]} 49. Bb3 {[%clk 0:00:07.6]} 49... Nd2 {[%clk 0:00:24]} 50.
Rh4 {[%clk 0:00:06.6]} 50... Nxb3 {[%clk 0:00:23.8]} 51. axb3 {[%clk 0:00:07]}
51... Rxb3+ {[%clk 0:00:25.4]} 52. Kf2 {[%clk 0:00:08.3]} 52... Rb2+ {[%clk
0:00:25.9]} 53. Ke3 {[%clk 0:00:09.2]} 53... Rb3+ {[%clk 0:00:27.6]} 54. Kd2
{[%clk 0:00:10]} 54... Rb4 {[%clk 0:00:29.2]} 55. Kd3 {[%clk 0:00:10.2]} 55...
Rd4+ {[%clk 0:00:29]} 56. Ke3 {[%clk 0:00:11.5]} 56... c4 {[%clk 0:00:30.4]} 57.
Rg4 {[%clk 0:00:11.3]} 57... c3 {[%clk 0:00:29.9]} 58. Rg2 {[%clk 0:00:12.2]}
58... Nxe4 {[%clk 0:00:27.1]} 59. Rc2 {[%clk 0:00:13.5]} 59... Rd2 {[%clk
0:00:27.5]} 60. Rc1 {[%clk 0:00:14.1]} 60... Ra2 {[%clk 0:00:27.6]} 61. Kxe4
{[%clk 0:00:14.9]} 61... Ra4+ {[%clk 0:00:21.1]} 62. Ke3 {[%clk 0:00:15.1]}
62... Rc4 {[%clk 0:00:21.2]} 63. Kd3 {[%clk 0:00:15.7]} 63... Rc5 {[%clk
0:00:22.4]} 64. Ke4 {[%clk 0:00:16.5]} 64... Ke7 {[%clk 0:00:21.4]} 65. Ke3
{[%clk 0:00:16.1]} 65... Kd7 {[%clk 0:00:22.5]} 66. Ke4 {[%clk 0:00:16.9]} 66...
c2 {[%clk 0:00:23.4]} 67. Ke3 {[%clk 0:00:17.3]} 67... Kc7 {[%clk 0:00:24.5]}
68. Kd2 {[%clk 0:00:17.9]} 68... Kb6 {[%clk 0:00:25.7]} 69. Ke3 {[%clk 0:00:17]}
69... Kb5 {[%clk 0:00:26.7]} 70. Ke4 {[%clk 0:00:16.2]} 70... Rc4+ {[%clk
0:00:27.9]} 71. Kd3 {[%clk 0:00:16.5]} 71... Kc5 {[%clk 0:00:29.2]} 72. Kd2
{[%clk 0:00:15.6]} 72... Kxd5 {[%clk 0:00:30.2]} 73. Kd3 {[%clk 0:00:16.7]}
73... Kc5 {[%clk 0:00:30.6]} 74. Kd2 {[%clk 0:00:17.6]} 74... d5 {[%clk
0:00:32.1]} 75. Kd3 {[%clk 0:00:18.6]} 75... e4+ {[%clk 0:00:33.5]} 76. Kd2
{[%clk 0:00:19.7]} 76... d4 {[%clk 0:00:33.3]} 77. Ke2 {[%clk 0:00:20.5]} 77...
Kd5 {[%clk 0:00:34.5]} 78. Kd2 {[%clk 0:00:21.5]} 78... Ke5 {[%clk 0:00:35.7]}
79. Ke2 {[%clk 0:00:20.3]} 79... Kxf5 {[%clk 0:00:36.5]} 80. Kd2 {[%clk
0:00:21.9]} 80... Ke5 {[%clk 0:00:37.8]} 81. Ke2 {[%clk 0:00:22.8]} 81... f5
{[%clk 0:00:39]} 82. Kd2 {[%clk 0:00:24.2]} 82... f4 {[%clk 0:00:40.1]} 83. Ke2
{[%clk 0:00:25.4]} 83... d3+ {[%clk 0:00:41.1]} 84. Kd2 {[%clk 0:00:26.4]} 84...
Kd4 {[%clk 0:00:41.7]} 85. Ke1 {[%clk 0:00:19.3]} 85... e3 {[%clk 0:00:42.3]}
86. Ra1 {[%clk 0:00:19.7]} 86... d2+ {[%clk 0:00:42.7]} 87. Ke2 {[%clk
0:00:18.6]} 87... c1=Q {[%clk 0:00:42]} 88. Ra8 {[%clk 0:00:15.7]} 88... d1=Q#
{[%clk 0:00:38.5]} 0-1

[Event "*** Titled Tuesday 3|2 Blitz"]
[Site "Chess.com"]
[Date "2016.02.02"]
[Round "5"]
[White "Quiet_Desperation"]
[Black "Saitama_Hero"]
[Result "0-1"]
[WhiteElo "2100"]
[BlackElo "2087"]
[TimeControl "180+2"]
[EndTime "11:59:44 PST"]
[Termination "Saitama_Hero won by resignation"]

1. e4 {[%clk 0:03:01.9]} 1... c5 {[%clk 0:02:59]} 2. Nf3 {[%clk 0:02:59.6]} 2...
g6 {[%clk 0:03:00.5]} 3. d3 {[%clk 0:02:53.7]} 3... Bg7 {[%clk 0:03:00.4]} 4. g3
{[%clk 0:02:55]} 4... Nc6 {[%clk 0:03:01.9]} 5. Bg2 {[%clk 0:02:56.2]} 5... Nf6
{[%clk 0:03:01.4]} 6. O-O {[%clk 0:02:56.3]} 6... O-O {[%clk 0:03:03]} 7. c3
{[%clk 0:02:56.8]} 7... d6 {[%clk 0:03:03.7]} 8. Re1 {[%clk 0:02:56.1]} 8... Rb8
{[%clk 0:03:05]} 9. Nbd2 {[%clk 0:02:57.4]} 9... b5 {[%clk 0:03:05.7]} 10. h4
{[%clk 0:02:57.2]} 10... b4 {[%clk 0:03:04.1]} 11. Nf1 {[%clk 0:02:56.2]} 11...
bxc3 {[%clk 0:03:04.2]} 12. bxc3 {[%clk 0:02:56.9]} 12... Ng4 {[%clk 0:02:46.6]}
13. Bd2 {[%clk 0:02:56.7]} 13... Ba6 {[%clk 0:02:40]} 14. Qc2 {[%clk 0:02:51.5]}
14... Nge5 {[%clk 0:02:30.2]} 15. Nxe5 {[%clk 0:02:49.7]} 15... Nxe5 {[%clk
0:02:32.1]} 16. c4 {[%clk 0:02:46]} 16... Nc6 {[%clk 0:02:28.7]} 17. Bc3 {[%clk
0:02:38.2]} 17... Nd4 {[%clk 0:02:25.5]} 18. Bxd4 {[%clk 0:02:38.2]} 18... Bxd4
{[%clk 0:02:25.1]} 19. Rab1 {[%clk 0:02:39.8]} 19... Qa5 {[%clk 0:02:25.8]} 20.
Ne3 {[%clk 0:02:36.6]} 20... e6 {[%clk 0:02:22.2]} 21. h5 {[%clk 0:02:26.6]}
21... Rb6 {[%clk 0:02:20.2]} 22. Rxb6 {[%clk 0:02:26.3]} 22... Qxe1+ {[%clk
0:02:15.9]} 0-1

[Event "*** Titled Tuesday 3|2 Blitz"]
[Site "Chess.com"]
[Date "2016.02.02"]
[Round "5"]
[White "RamonManon0g"]
[Black "StellarChessPro"]
[Result "0-1"]
[WhiteElo "2121"]
[BlackElo "2224"]
[TimeControl "180+2"]
[EndTime "11:59:58 PST"]
[Termination "StellarChessPro won by resignation"]

1. d4 {[%clk 0:03:01.9]} 1... d5 {[%clk 0:03:00.6]} 2. Bg5 {[%clk 0:03:02.4]}
2... c5 {[%clk 0:03:01.5]} 3. dxc5 {[%clk 0:03:03.1]} 3... f6 {[%clk 0:03:02.2]}
4. Bh4 {[%clk 0:03:03.2]} 4... e5 {[%clk 0:03:03]} 5. e4 {[%clk 0:03:03.2]} 5...
d4 {[%clk 0:03:03.8]} 6. Bc4 {[%clk 0:03:03.5]} 6... Bxc5 {[%clk 0:03:04.3]} 7.
Bxg8 {[%clk 0:03:04.3]} 7... Rxg8 {[%clk 0:03:05]} 8. Qh5+ {[%clk 0:03:04.9]}
8... Kf8 {[%clk 0:03:05.8]} 9. Qxh7 {[%clk 0:03:05.6]} 9... Nc6 {[%clk
0:03:04.6]} 10. Nf3 {[%clk 0:03:05.3]} 10... Be6 {[%clk 0:03:01.8]} 11. O-O
{[%clk 0:03:04.9]} 11... Qd7 {[%clk 0:03:00.6]} 12. Nbd2 {[%clk 0:02:58.4]}
12... Ne7 {[%clk 0:03:00.8]} 13. Nb3 {[%clk 0:02:56.1]} 13... Bd6 {[%clk
0:02:58.6]} 14. Rad1 {[%clk 0:02:55.3]} 14... Bf7 {[%clk 0:02:59.7]} 15. Bg3
{[%clk 0:02:19]} 15... Bg6 {[%clk 0:02:59.3]} 16. Qh4 {[%clk 0:02:19.4]} 16...
Kf7 {[%clk 0:02:58]} 17. Qh3 {[%clk 0:02:17.9]} 17... Qxh3 {[%clk 0:02:55.1]}
18. gxh3 {[%clk 0:02:19.8]} 18... Bxe4 {[%clk 0:02:55.7]} 19. Nfd2 {[%clk
0:02:17.6]} 19... Bxc2 {[%clk 0:02:55.9]} 20. Rc1 {[%clk 0:02:17.8]} 20... Bxb3
{[%clk 0:02:56.8]} 21. Nxb3 {[%clk 0:02:18.9]} 21... Rac8 {[%clk 0:02:57.2]} 22.
Nxd4 {[%clk 0:02:19.2]} 22... exd4 {[%clk 0:02:51.8]} 23. Bxd6 {[%clk
0:02:18.7]} 23... Nf5 {[%clk 0:02:52.9]} 24. Bb4 {[%clk 0:02:17.6]} 24... Ke6
{[%clk 0:02:53.9]} 25. Rfe1+ {[%clk 0:02:18.3]} 25... Kd5 {[%clk 0:02:54.8]} 26.
Rcd1 {[%clk 0:02:19.9]} 26... Rge8 {[%clk 0:02:54.5]} 27. Kf1 {[%clk 0:02:15.1]}
27... b5 {[%clk 0:02:54.4]} 28. Re2 {[%clk 0:02:07.5]} 28... Rxe2 {[%clk
0:02:54]} 29. Kxe2 {[%clk 0:02:08.6]} 29... Rc2+ {[%clk 0:02:55.9]} 30. Kf3
{[%clk 0:02:05.7]} 30... Rxb2 {[%clk 0:02:53.4]} 0-1

[Event "*** Titled Tuesday 3|2 Blitz"]
[Site "Chess.com"]
[Date "2016.02.02"]
[Round "5"]
[White "Sawyer2908"]
[Black "Colombiano07"]
[Result "1-0"]
[WhiteElo "2272"]
[BlackElo "2164"]
[TimeControl "180+2"]
[EndTime "12:01:22 PST"]
[Termination "Sawyer2908 won by resignation"]

1. e4 {[%clk 0:02:58.8]} 1... e6 {[%clk 0:02:23.4]} 2. d4 {[%clk 0:02:58.9]}
2... d5 {[%clk 0:02:23.4]} 3. Nc3 {[%clk 0:02:59.9]} 3... dxe4 {[%clk
0:02:24.5]} 4. Nxe4 {[%clk 0:03:00.3]} 4... Bd7 {[%clk 0:02:26.2]} 5. Nf3 {[%clk
0:03:00.3]} 5... Bc6 {[%clk 0:02:27.8]} 6. Bd3 {[%clk 0:03:01.3]} 6... Nd7
{[%clk 0:02:29.4]} 7. Qe2 {[%clk 0:03:01.7]} 7... Ngf6 {[%clk 0:02:31.1]} 8. Bg5
{[%clk 0:03:01.7]} 8... Be7 {[%clk 0:02:31.8]} 9. Bxf6 {[%clk 0:02:59.7]} 9...
Nxf6 {[%clk 0:02:32.6]} 10. O-O-O {[%clk 0:02:59]} 10... Bxe4 {[%clk 0:02:32.2]}
11. Bxe4 {[%clk 0:02:59.4]} 11... Nxe4 {[%clk 0:02:34.1]} 12. Qxe4 {[%clk
0:02:59.9]} 12... Qd5 {[%clk 0:02:35.8]} 13. Qd3 {[%clk 0:02:44.1]} 13... Qxa2
{[%clk 0:01:52.1]} 14. Qb5+ {[%clk 0:02:44.3]} 14... Kf8 {[%clk 0:01:33.8]} 15.
Qxb7 {[%clk 0:02:43.8]} 15... Qd5 {[%clk 0:01:35.7]} 16. Qxd5 {[%clk 0:02:32.6]}
16... exd5 {[%clk 0:01:15.3]} 17. c3 {[%clk 0:02:33.4]} 17... Bd6 {[%clk
0:01:15.8]} 18. Kc2 {[%clk 0:02:33.7]} 18... Ke7 {[%clk 0:01:11.7]} 19. Ra1
{[%clk 0:02:31.8]} 19... a5 {[%clk 0:01:12.2]} 20. Ra4 {[%clk 0:02:31.9]} 20...
Rhb8 {[%clk 0:01:10.5]} 21. Rha1 {[%clk 0:02:31.8]} 21... Rb5 {[%clk 0:01:11.6]}
22. b4 {[%clk 0:02:28.9]} 22... Rab8 {[%clk 0:01:06.2]} 23. Rxa5 {[%clk
0:02:29.2]} 23... c6 {[%clk 0:01:00.1]} 24. Ne1 {[%clk 0:02:24.6]} 24... Ke6
{[%clk 0:00:59.8]} 25. Nd3 {[%clk 0:02:25.3]} 25... Kf5 {[%clk 0:01:00.7]} 26.
Rxb5 {[%clk 0:02:25.1]} 26... Rxb5 {[%clk 0:00:58.8]} 27. Ra6 {[%clk 0:02:23.4]}
1-0

[Event "*** Titled Tuesday 3|2 Blitz"]
[Site "Chess.com"]
[Date "2016.02.02"]
[Round "5"]
[White "maciek_92"]
[Black "Er_is_geen_hoop_meer"]
[Result "1-0"]
[WhiteElo "2470"]
[BlackElo "2306"]
[TimeControl "180+2"]
[EndTime "12:01:59 PST"]
[Termination "maciek_92 won by resignation"]

1. d4 {[%clk 0:02:59.7]} 1... Nf6 {[%clk 0:03:00.8]} 2. c4 {[%clk 0:02:54.1]}
2... g6 {[%clk 0:03:01.9]} 3. Nc3 {[%clk 0:02:53.9]} 3... Bg7 {[%clk 0:03:03.2]}
4. e4 {[%clk 0:02:54.1]} 4... d6 {[%clk 0:03:04.5]} 5. Nf3 {[%clk 0:02:54.6]}
5... O-O {[%clk 0:03:05.6]} 6. Be2 {[%clk 0:02:56.1]} 6... e5 {[%clk 0:03:06.9]}
7. O-O {[%clk 0:02:57.4]} 7... Nc6 {[%clk 0:03:08.4]} 8. d5 {[%clk 0:02:58.7]}
8... Ne7 {[%clk 0:03:10]} 9. b4 {[%clk 0:03:00.2]} 9... a5 {[%clk 0:03:09.5]}
10. Ba3 {[%clk 0:02:58.7]} 10... axb4 {[%clk 0:02:59.7]} 11. Bxb4 {[%clk
0:03:00.6]} 11... b6 {[%clk 0:03:00.5]} 12. a4 {[%clk 0:03:01]} 12... Re8 {[%clk
0:03:01.7]} 13. a5 {[%clk 0:02:47.1]} 13... c5 {[%clk 0:03:01.5]} 14. dxc6
{[%clk 0:02:47]} 14... Nxc6 {[%clk 0:03:03.1]} 15. Bxd6 {[%clk 0:02:47.5]} 15...
Rxa5 {[%clk 0:02:51.8]} 16. Rxa5 {[%clk 0:02:46.7]} 16... bxa5 {[%clk
0:02:50.6]} 17. c5 {[%clk 0:02:48]} 17... Bg4 {[%clk 0:02:47.7]} 18. Qa4 {[%clk
0:02:26.9]} 18... Bxf3 {[%clk 0:02:46.9]} 19. Qxc6 {[%clk 0:02:26.8]} 19... Bxe2
{[%clk 0:02:47.1]} 20. Nxe2 {[%clk 0:02:28.7]} 20... Qc8 {[%clk 0:02:46.4]} 21.
Qa4 {[%clk 0:02:11.8]} 21... Bf8 {[%clk 0:02:45.9]} 22. Rd1 {[%clk 0:02:11.4]}
22... Rd8 {[%clk 0:02:40.3]} 23. Ng3 {[%clk 0:01:15.1]} 23... h5 {[%clk
0:02:35.2]} 24. h4 {[%clk 0:01:08.3]} 24... Ng4 {[%clk 0:02:32.6]} 25. Qxa5
{[%clk 0:01:03]} 25... Bxd6 {[%clk 0:02:33.7]} 26. cxd6 {[%clk 0:01:03.7]} 26...
Qc2 {[%clk 0:02:31.2]} 27. Qxd8+ {[%clk 0:01:03.2]} 27... Kh7 {[%clk 0:02:24.9]}
28. Rf1 {[%clk 0:01:03.6]} 28... f5 {[%clk 0:02:14.5]} 29. Qe7+ {[%clk
0:01:03.2]} 29... Kh6 {[%clk 0:02:13.7]} 30. exf5 {[%clk 0:01:03.2]} 30... e4
{[%clk 0:02:14.8]} 31. Qg5+ {[%clk 0:01:02.5]} 31... Kg7 {[%clk 0:02:14.4]} 32.
Qxg6+ {[%clk 0:01:02.5]} 32... Kf8 {[%clk 0:02:16.1]} 33. d7 {[%clk 0:01:02.3]}
1-0

[Event "*** Titled Tuesday 3|2 Blitz"]
[Site "Chess.com"]
[Date "2016.02.02"]
[Round "5"]
[White "Rating-Schmating"]
[Black "the_drake"]
[Result "1-0"]
[WhiteElo "2153"]
[BlackElo "2003"]
[TimeControl "180+2"]
[EndTime "12:02:36 PST"]
[Termination "Rating-Schmating won by checkmate"]

1. e4 {[%clk 0:03:01.9]} 1... e5 {[%clk 0:03:01]} 2. Nf3 {[%clk 0:03:01.9]} 2...
Nc6 {[%clk 0:03:02.1]} 3. d4 {[%clk 0:03:01.6]} 3... exd4 {[%clk 0:03:02.8]} 4.
Nxd4 {[%clk 0:03:01.8]} 4... Nf6 {[%clk 0:03:04.1]} 5. Nxc6 {[%clk 0:03:02.6]}
5... bxc6 {[%clk 0:03:06]} 6. e5 {[%clk 0:03:03.7]} 6... Qe7 {[%clk 0:03:07.5]}
7. Qe2 {[%clk 0:03:05]} 7... Nd5 {[%clk 0:03:09.1]} 8. c4 {[%clk 0:03:06.4]}
8... Ba6 {[%clk 0:03:10.4]} 9. Nd2 {[%clk 0:03:07.2]} 9... g6 {[%clk 0:03:10.6]}
10. b3 {[%clk 0:03:06.4]} 10... Bg7 {[%clk 0:03:11.2]} 11. Bb2 {[%clk
0:03:07.7]} 11... Nb4 {[%clk 0:03:06.8]} 12. Nf3 {[%clk 0:03:05.8]} 12... O-O
{[%clk 0:03:04]} 13. a3 {[%clk 0:03:05.4]} 13... Nd5 {[%clk 0:02:53.6]} 14. Qc2
{[%clk 0:03:05.3]} 14... Nb6 {[%clk 0:02:46.9]} 15. O-O-O {[%clk 0:03:05.5]}
15... d5 {[%clk 0:02:44.2]} 16. exd6 {[%clk 0:03:06.4]} 16... cxd6 {[%clk
0:02:44.8]} 17. Bd3 {[%clk 0:03:07.1]} 17... d5 {[%clk 0:02:43.5]} 18. cxd5
{[%clk 0:03:02.2]} 18... Bxd3 {[%clk 0:02:45.4]} 19. Qxd3 {[%clk 0:03:00.2]}
19... cxd5 {[%clk 0:02:43.1]} 20. Bxg7 {[%clk 0:03:00.7]} 20... Kxg7 {[%clk
0:02:43]} 21. Kb2 {[%clk 0:02:59]} 21... Rac8 {[%clk 0:02:38.9]} 22. Rhe1 {[%clk
0:02:58.1]} 22... Qf6+ {[%clk 0:02:39]} 23. Qd4 {[%clk 0:02:58.2]} 23... Rfe8
{[%clk 0:02:24.4]} 24. Qxf6+ {[%clk 0:02:52.9]} 24... Kxf6 {[%clk 0:02:26.3]}
25. Nd4 {[%clk 0:02:52.6]} 25... Re4 {[%clk 0:02:21.1]} 26. Rxe4 {[%clk
0:02:50]} 26... dxe4 {[%clk 0:02:22.1]} 27. Nb5 {[%clk 0:02:51.6]} 27... Ke5
{[%clk 0:02:09.2]} 28. Nxa7 {[%clk 0:02:47.4]} 28... Rc5 {[%clk 0:02:08.4]} 29.
b4 {[%clk 0:02:43.2]} 29... Rc7 {[%clk 0:01:56.9]} 30. Nb5 {[%clk 0:02:41.4]}
30... Rb7 {[%clk 0:01:54.7]} 31. Nc3 {[%clk 0:02:35.2]} 31... f5 {[%clk
0:01:53.1]} 32. Rd8 {[%clk 0:02:33.8]} 32... Rc7 {[%clk 0:01:47.8]} 33. Kb3
{[%clk 0:02:30.9]} 33... Nc4 {[%clk 0:01:46]} 34. Re8+ {[%clk 0:02:29.9]} 34...
Kd6 {[%clk 0:01:20.9]} 35. Nb5+ {[%clk 0:02:30.1]} 35... Kd7 {[%clk 0:01:21.4]}
36. Nxc7 {[%clk 0:02:31.3]} 36... Nd6 {[%clk 0:01:21.9]} 37. Rh8 {[%clk
0:02:27]} 37... Kxc7 {[%clk 0:01:21.8]} 38. Rxh7+ {[%clk 0:02:28.4]} 38... Kc6
{[%clk 0:01:23.4]} 39. a4 {[%clk 0:02:29]} 39... f4 {[%clk 0:01:24.7]} 40. Rg7
{[%clk 0:02:29]} 40... e3 {[%clk 0:01:24.8]} 41. fxe3 {[%clk 0:02:30.4]} 41...
fxe3 {[%clk 0:01:26.7]} 42. b5+ {[%clk 0:02:31.9]} 42... Kd5 {[%clk 0:01:27.4]}
43. Re7 {[%clk 0:02:31]} 43... Ne4 {[%clk 0:01:27.6]} 44. Kc2 {[%clk 0:02:31.1]}
44... e2 {[%clk 0:01:28.7]} 45. Rxe4 {[%clk 0:02:31]} 45... Kxe4 {[%clk
0:01:28.6]} 46. Kd2 {[%clk 0:02:32.2]} 46... e1=Q+ {[%clk 0:01:30.5]} 47. Kxe1
{[%clk 0:02:33.6]} 47... g5 {[%clk 0:01:31.9]} 48. b6 {[%clk 0:02:34.5]} 48...
g4 {[%clk 0:01:33.8]} 49. b7 {[%clk 0:02:36.1]} 49... g3 {[%clk 0:01:35.7]} 50.
b8=Q {[%clk 0:02:36.6]} 50... gxh2 {[%clk 0:01:35.6]} 51. Qxh2 {[%clk
0:02:38.2]} 51... Ke3 {[%clk 0:01:36.6]} 52. Qe5+ {[%clk 0:02:38]} 52... Kd3
{[%clk 0:01:37.7]} 53. Qf4 {[%clk 0:02:39.2]} 53... Kc2 {[%clk 0:01:38.1]} 54.
Qe3 {[%clk 0:02:40]} 54... Kb2 {[%clk 0:01:39.3]} 55. Qd3 {[%clk 0:02:41]} 55...
Kc1 {[%clk 0:01:40.6]} 56. Qd2+ {[%clk 0:02:41.4]} 56... Kb1 {[%clk 0:01:42.5]}
57. Ke2 {[%clk 0:02:43.3]} 57... Ka1 {[%clk 0:01:44.1]} 58. Kd3 {[%clk
0:02:45.2]} 58... Kb1 {[%clk 0:01:45]} 59. Kc3 {[%clk 0:02:47.1]} 59... Ka1
{[%clk 0:01:45.9]} 60. Qb2# {[%clk 0:02:48.7]} 1-0

[Event "*** Titled Tuesday 3|2 Blitz"]
[Site "Chess.com"]
[Date "2016.02.02"]
[Round "5"]
[White "lorcho"]
[Black "tigra"]
[Result "1-0"]
[WhiteElo "2637"]
[BlackElo "2391"]
[TimeControl "180+2"]
[EndTime "12:02:42 PST"]
[Termination "lorcho won by resignation"]

1. e4 {[%clk 0:03:01.9]} 1... c5 {[%clk 0:03:00.4]} 2. Nc3 {[%clk 0:02:49.9]}
2... Nc6 {[%clk 0:03:00.9]} 3. g3 {[%clk 0:02:50.9]} 3... g6 {[%clk 0:03:01.9]}
4. Bg2 {[%clk 0:02:52.1]} 4... Bg7 {[%clk 0:03:03.5]} 5. d3 {[%clk 0:02:53.4]}
5... e6 {[%clk 0:03:04.5]} 6. Be3 {[%clk 0:02:53.2]} 6... b6 {[%clk 0:03:04.8]}
7. f4 {[%clk 0:02:52.1]} 7... Nge7 {[%clk 0:03:05.1]} 8. Nf3 {[%clk 0:02:52.2]}
8... d5 {[%clk 0:03:05.6]} 9. Bf2 {[%clk 0:02:51.4]} 9... O-O {[%clk 0:03:05.3]}
10. O-O {[%clk 0:02:51.5]} 10... dxe4 {[%clk 0:03:04.8]} 11. dxe4 {[%clk
0:02:48.9]} 11... Ba6 {[%clk 0:03:05.5]} 12. Re1 {[%clk 0:02:48.2]} 12... Qxd1
{[%clk 0:02:55.8]} 13. Rexd1 {[%clk 0:02:48.5]} 13... Bxc3 {[%clk 0:02:52.8]}
14. bxc3 {[%clk 0:02:49.2]} 14... Rfd8 {[%clk 0:02:53.7]} 15. e5 {[%clk
0:02:39.9]} 15... Be2 {[%clk 0:02:45.4]} 16. Rd6 {[%clk 0:02:32.1]} 16... Na5
{[%clk 0:02:03.3]} 17. Ng5 {[%clk 0:02:26.7]} 17... Rac8 {[%clk 0:02:02.9]} 18.
Re1 {[%clk 0:02:24.8]} 18... Bc4 {[%clk 0:02:01.6]} 19. Ne4 {[%clk 0:02:22.9]}
19... Bxa2 {[%clk 0:01:59.6]} 20. Nf6+ {[%clk 0:02:20.3]} 20... Kg7 {[%clk
0:01:59.2]} 21. g4 {[%clk 0:02:12.9]} 21... Rxd6 {[%clk 0:01:04.1]} 22. exd6
{[%clk 0:02:12.4]} 22... Kxf6 {[%clk 0:01:05.4]} 23. Bh4+ {[%clk 0:02:09.5]}
23... Kg7 {[%clk 0:01:05.3]} 24. Bxe7 {[%clk 0:02:09.1]} 24... Bc4 {[%clk
0:00:25.4]} 25. d7 {[%clk 0:02:08]} 25... Rg8 {[%clk 0:00:26.1]} 26. d8=Q {[%clk
0:01:57.8]} 26... Rxd8 {[%clk 0:00:26.5]} 27. Bxd8 {[%clk 0:01:59.7]} 27... Bb5
{[%clk 0:00:26.9]} 28. g5 {[%clk 0:01:59.5]} 28... Nc4 {[%clk 0:00:27.4]} 29.
Bf6+ {[%clk 0:02:00.3]} 29... Kf8 {[%clk 0:00:27.9]} 30. Bf1 {[%clk 0:01:58.5]}
1-0

[Event "*** Titled Tuesday 3|2 Blitz"]
[Site "Chess.com"]
[Date "2016.02.02"]
[Round "5"]
[White "Boryboy"]
[Black "spectralsoul"]
[Result "1-0"]
[WhiteElo "2507"]
[BlackElo "2551"]
[TimeControl "180+2"]
[EndTime "12:02:50 PST"]
[Termination "Boryboy won by resignation"]

1. d4 {[%clk 0:02:59.7]} 1... Nf6 {[%clk 0:03:00.3]} 2. Nf3 {[%clk 0:02:56.6]}
2... e6 {[%clk 0:03:00.1]} 3. c4 {[%clk 0:02:55.7]} 3... b6 {[%clk 0:02:59.5]}
4. g3 {[%clk 0:02:56.4]} 4... Ba6 {[%clk 0:03:00.1]} 5. Qa4 {[%clk 0:02:49.3]}
5... Bb7 {[%clk 0:02:58.9]} 6. Bg2 {[%clk 0:02:50.4]} 6... c5 {[%clk 0:03:00.2]}
7. d5 {[%clk 0:02:38.5]} 7... exd5 {[%clk 0:02:59.4]} 8. Nh4 {[%clk 0:02:39.4]}
8... Bc6 {[%clk 0:02:57]} 9. Qc2 {[%clk 0:02:37.1]} 9... dxc4 {[%clk 0:02:51.8]}
10. e4 {[%clk 0:02:38.2]} 10... b5 {[%clk 0:02:27.5]} 11. O-O {[%clk 0:02:38.4]}
11... d6 {[%clk 0:02:28.7]} 12. a4 {[%clk 0:02:33]} 12... a6 {[%clk 0:02:26]}
13. Rd1 {[%clk 0:02:28.7]} 13... Nbd7 {[%clk 0:01:59.8]} 14. Bf4 {[%clk
0:02:18.6]} 14... Qc8 {[%clk 0:01:04.6]} 15. Nf5 {[%clk 0:01:54.3]} 15... Ne5
{[%clk 0:00:50.8]} 16. Nxd6+ {[%clk 0:01:54.4]} 16... Bxd6 {[%clk 0:00:50.8]}
17. Rxd6 {[%clk 0:01:55.4]} 17... Nfd7 {[%clk 0:00:47.6]} 18. Bh3 {[%clk
0:01:38.7]} 18... Qc7 {[%clk 0:00:41.2]} 19. Bxd7+ {[%clk 0:01:33.6]} 19... Bxd7
{[%clk 0:00:29.1]} 20. Bxe5 {[%clk 0:01:33.5]} 20... O-O {[%clk 0:00:28.7]} 21.
Nc3 {[%clk 0:01:34.7]} 21... Qb7 {[%clk 0:00:26.8]} 22. Nd5 {[%clk 0:01:35.2]}
22... Be6 {[%clk 0:00:27.3]} 23. Qd2 {[%clk 0:01:33.6]} 23... Bxd5 {[%clk
0:00:21.2]} 24. Qxd5 {[%clk 0:01:33.1]} 24... Qe7 {[%clk 0:00:22.4]} 25. axb5
{[%clk 0:01:33.5]} 1-0